Cogmind - Beta 11 X7 *** ADVENTURER MODE // 2021.08.25 @ 23:10:25 Player: nalzok Result: Smashed by cave-in Performance ------------- Evolutions (0) 0 Regions Visited (2) 400 Robots Destroyed (11) 55 Value Destroyed (228) 228 Prototype IDs (2) 40 Alien Tech Used (0) 0 Bonus (0) 0 TOTAL SCORE: 723 Bonus ------- None Cogmind --------- Core Integrity 0/250 Matter 99/300 Energy 219/265 System Corruption 7% Temperature Cool (0) Movement Walking (200) Ox1 Location -10/Mines Parts ------- > --- POWER (1) -------- Improved Ion Engine > --- PROPULSION (2) --- Aluminum Leg Aluminum Leg > --- UTILITY (2) ------ Large Storage Unit > --- WEAPON (2) ------- Heavy Assault Rifle Heavy Assault Rifle > --- INVENTORY (15) --- Improved Ion Engine Large Storage Unit Grenade Launcher Grenade Launcher Peak State ------------ > --- POWER ------------ Improved Ion Engine > --- PROPULSION ------- Wheel Compact Wheel > --- UTILITY ---------- Medium Storage Unit Transport Network Coupler > --- WEAPON ----------- Heavy Assault Rifle Heavy Assault Rifle > --- INVENTORY -------- Improved Ion Engine Improved Ion Engine Aluminum Leg Aluminum Leg EM Pulse Gun Heavy Assault Rifle Heavy Assault Rifle Light Cannon Grenade Launcher Grenade Launcher [Rating: 11] Favorites ----------- Power Light Ion Engine Engine Light Ion Engine Propulsion Compact Wheel Leg Aluminum Leg Wheel Compact Wheel Utility Transport Network Coupler Storage Medium Storage Unit Processor Transport Network Coupler Weapon Heavy Assault Rifle Energy Gun EM Pulse Gun Ballistic Gun Heavy Assault Rifle Ballistic Cannon Light Cannon Launcher Grenade Launcher Build | -11 -10 -10 ------- Run | Scr Mat Min Slots Evolved . | . . . Power . | . . . Propulsion . | . . . Utility . | . . . Weapon . | . . . Parts Attached 22 | 6 8 8 Power 4 | 1 2 1 Engine 4 | 1 2 1 Core . | . . . Reactor . | . . . Propulsion 4 | 2 . 2 Treads . | . . . Leg 2 | . . 2 Wheel 2 | 2 . . Hover . | . . . Flight . | . . . Utility 5 | 1 4 . Device . | . . . Storage 3 | 1 2 . Processor 2 | . 2 . Hackware . | . . . Protection . | . . . Artifact . | . . . Weapon 9 | 2 2 5 Energy Gun 1 | . . 1 Energy Cannon . | . . . Ballistic Gun 6 | 2 2 2 Ballistic Cannon 1 | . . 1 Launcher 1 | . . 1 Special Weapon . | . . . Impact Weapon . | . . . Slashing Weapon . | . . . Piercing Weapon . | . . . Special Melee Weapon . | . . . Unidentified Prototypes . | . . . Parts Lost 7 | . . 7 Power . | . . . Propulsion 2 | . . 2 Utility 1 | . . 1 Weapon 4 | . . 4 Highest Loss Streak 7 | . . 7 Average Slot Usage (%) 93 | . 99 69 Engine 13 | . 14 12 Wheel 24 | . 28 9 Storage 14 | . 14 14 Processor 11 | . 13 4 Ballistic Gun 26 | . 28 21 Naked Turns . | . . . Heaviest Build 33 | 11 33 33 Greatest Support 26 | 26 26 26 Greatest Overweight (x) 1 | . 1 1 Average Overweight (x) . | . . 1 Largest Inventory Capacity 15 | 8 15 15 Average Capacity 10 | 6 9 15 Most Carried 11 | 6 11 11 Average Carried 8 | 3 9 9 Final Capacity 15 | 8 15 15 Final Carried 11 | 6 11 4 Class Distribution -------------------- 100% | Mutant Dominant Class ---------------- Mutant | -10/Materials Mutant | -10/Mines Resources | -11 -10 -10 ----------- Run | Scr Mat Min Matter Collected 533 | 227 185 121 Remotely . | . . . Salvage Created 539 | . 341 198 Parts 19 | . 15 4 Haulers Intercepted 2 | . 2 . Recyclers Shooed 2 | . 2 . Parts Field Recycled . | . . . Retrieved Matter . | . . . Parts Self-Destructed . | . . . Prevented . | . . . Kills | -11 -10 -10 ------- Run | Scr Mat Min Combat Hostiles Destroyed 21 | . 5 16 Guns 16 | . 5 11 Cannons 3 | . . 3 AOE 2 | . . 2 Classes Destroyed 7 | . 4 3 Worker 1 | . . 1 Hauler 2 | . 2 . Recycler 1 | . 1 . Swarmer 3 | . 3 . Grunt 2 | . 2 . Demolisher 2 | . . 2 Assembled 14 | . . 14 Best Kill Streak 15 | . 3 15 Combat Bots Only 15 | . 3 15 Max Kills in Single Turn 2 | . 1 2 Gunslinging . | . . . Exploded 2 | . . 2 Melee . | . . . Uniques/NPCs Destroyed . | . . . Combat | -11 -10 -10 -------- Run | Scr Mat Min Damage Taken 1406 | . 163 1243 Core 316 | . 21 295 Absorbed by Shields . | . . . Core Remaining (%) 100 | 100 . . Volleys Fired 64 | . 28 36 Largest 2 | . 2 2 Hottest 75 | . 40 75 Shots Fired 125 | . 56 69 Gun 111 | . 56 55 Cannon 11 | . . 11 Launcher 3 | . . 3 Special . | . . . Kinetic 119 | . 56 63 Thermal . | . . . Explosive 3 | . . 3 Electromagnetic 3 | . . 3 Robot Hit Streak 17 | . 15 17 Robot Miss Streak 2 | . 2 1 Penetration Max . | . . . Secondary Targets . | . . . Shots Hit Robots 97 | . 42 55 Core Hits 51 | . 15 36 Critical Kills . | . . . Critical Parts Destroyed . | . . . Critical Strikes . | . . . Melee Attacks . | . . . Impact . | . . . Slashing . | . . . Piercing . | . . . Sneak Attacks . | . . . Combat Hostiles . | . . . Follow-up Attacks . | . . . Damage Inflicted 1282 | . 455 827 Guns 1051 | . 455 596 Cannons 174 | . . 174 Explosions 57 | . . 57 Melee . | . . . Ramming . | . . . Kinetic 1214 | . 455 759 Thermal . | . . . Explosive 57 | . . 57 Electromagnetic 11 | . . 11 Impact . | . . . Slashing . | . . . Piercing . | . . . Highest Corruption 7 | . . 7 Average Corruption 6 | . . 6 Corruption Purged . | . . . Effects 2 | . . 2 Matter Fused 1 | . . 1 Misfires 1 | . . 1 Overload Shots . | . . . Overflow Damage 13 | . . 13 Projectiles 13 | . . 13 Explosions . | . . . Melee . | . . . Knockbacks 2 | . . 2 Impact . | . . . Kinetic 2 | . . 2 Secondary . | . . . Self-Inflicted Damage 6 | . . 6 Shots 1 | . . 1 Rammed 1 | . . 1 Targets Rammed 1 | . . 1 Kicked . | . . . Crushed . | . . . Highest Temperature 34 | . 34 34 Average Temperature 16 | . 15 17 Received Heat Transfer 166 | . 126 40 Siege Activations . | . . . Robots Corrupted . | . . . Combat Hostiles . | . . . Parts Fried . | . . . Impact Corruptions . | . . . Robots Melted . | . . . Combat Hostiles . | . . . Parts Melted . | . . . Heat Transferred . | . . . Parts Sabotaged . | . . . Parts Stolen . | . . . Parts Stripped . | . . . Power Chain Reactions . | . . . Missiles Intercepted . | . . . Alert | -11 -10 -10 ------- Run | Scr Mat Min Peak Influence 176 | . 176 50 Initial 6 | . . 6 Average 30 | . 40 11 Maximum Alert Level . | . . . Low Security (%) 100 | 100 100 100 Level 1 . | . . . Level 2 . | . . . Level 3 . | . . . Level 4 . | . . . Level 5 . | . . . High Security . | . . . Max Security . | . . . Squads Dispatched . | . . . Investigation . | . . . Extermination . | . . . Reinforcement . | . . . Assault . | . . . Garrison . | . . . Intercept . | . . . Construction Impeded . | . . . Haulers Reinforced . | . . . Active Scanning Responses . | . . . Cargo Convoy Interrupts . | . . . Stealth | -11 -10 -10 --------- Run | Scr Mat Min Distress Signals . | . . . Communications Jammed . | . . . Distress Signals . | . . . Times Spotted 30 | . 8 22 Peak Tracking Total 14 | . 3 14 Tactical Retreats 1 | . . 1 Traps | -11 -10 -10 ------- Run | Scr Mat Min Traps Triggered . | . . . Indirectly . | . . . Trap Hack Attempts . | . . . Triggered . | . . . Disarmed . | . . . Reprogrammed . | . . . Reused . | . . . Traps Extracted . | . . . Installed . | . . . Triggered . | . . . Machines | -11 -10 -10 ---------- Run | Scr Mat Min Machines Disabled . | . . . Max in Single Turn . | . . . Machines Sabotaged . | . . . Garrisons Compromised . | . . . Overloaded Fab Kills . | . . . Fab Network Shutdowns . | . . . Hacking | -11 -10 -10 --------- Run | Scr Mat Min Machines Accessed 4 | . 4 . Terminals 4 | . 4 . Fabricators . | . . . Repair Stations . | . . . Recycling Units . | . . . Scanalyzers . | . . . Garrison Access . | . . . Total Hacks 15 | . 15 . Successful 5 | . 5 . Failed 10 | . 10 . Catastrophic 2 | . 2 . Database Lockouts . | . . . Manual 14 | . 14 . Terminals 15 | . 15 . Fabricators . | . . . Repair Stations . | . . . Recycling Units . | . . . Scanalyzers . | . . . Garrison Access . | . . . Terminal Hacks 5 | . 5 . Part Schematic 1 | . 1 . Prototype ID Bank 1 | . 1 . Branch Access Points 1 | . 1 . Unreport Threat 1 | . 1 . Registered Prototypes 1 | . 1 . Fabricator Hacks . | . . . Repair Station Hacks . | . . . Recycling Unit Hacks . | . . . Scanalyzer . | . . . Garrison Access Hacks . | . . . Unauthorized Hacks . | . . . Terminals . | . . . Fabricators . | . . . Repair Stations . | . . . Recycling Units . | . . . Scanalyzers . | . . . Garrison Access . | . . . Data Cores Recovered . | . . . Used . | . . . Hacking Detections 4 | . 4 . Full Trace Events . | . . . Feedback Events . | . . . Feedback Blocked . | . . . Robot Schematics Acquired . | . . . Robots Built . | . . . Matter . | . . . Time . | . . . Total Robot Build Rating . | . . . Part Schematics Acquired 1 | . 1 . Parts Built . | . . . Matter . | . . . Time . | . . . Total Part Build Rating . | . . . Parts Repaired . | . . . Time . | . . . Parts Recycled . | . . . Recycled Matter . | . . . Retrieved Matter . | . . . Retrieved Components . | . . . Parts Scanalyzed . | . . . Part Schematics Acquired . | . . . Parts Damaged . | . . . Bothacking | -11 -10 -10 ------------ Run | Scr Mat Min Used RIF Installer . | . . . Robots Hacked . | . . . Non-combat . | . . . Combat . | . . . Robot Hacks Applied . | . . . Relay Couplers Released . | . . . Robots Rewired . | . . . Allies Hacked . | . . . Hacks Repelled . | . . . Allies | -11 -10 -10 -------- Run | Scr Mat Min Total Allies . | . . . Largest Group . | . . . Highest-Rated Group . | . . . Highest-Rated Ally . | . . . Total Orders . | . . . Ally Attacks . | . . . Total Damage . | . . . Kills . | . . . Allies Corrupted . | . . . Allies Melted . | . . . Intel | -11 -10 -10 ------- Run | Scr Mat Min Robot Analysis Total . | . . . Derelict Logs Recovered . | . . . Drone Launches . | . . . Drone Recoveries . | . . . Exploration | -11 -10 -10 ------------- Run | Scr Mat Min Turns Passed 748 | 82 528 138 Spaces Moved 531 | 79 436 16 Core 9 | 9 . . Treads . | . . . Legs 3 | . . 3 Wheels 519 | 70 436 13 Hover . | . . . Flight . | . . . Fastest Speed 50 | 50 90 105 Average Speed 90 | 85 90 122 Slowest Speed 200 | 100 105 200 Overloaded Moves . | . . . Propulsion Burnouts . | . . . Robots Hopped . | . . . Cave-ins Triggered 1 | . . 1 Exploration Rate (%) 27 | 4 71 7 Regions Visited 2 Branch Regions 1 Pre-discovered Areas . | . . . Known Exits Taken 1 | . 1 . Unknown Exits Taken 1 | 1 . . Scrap Searched . | . . . Spaces Dug . | . . . Terrain Destroyed 10 | . . 10 Melee . | . . . Projectile . | . . . AOE 10 | . . 10 Terrain Rammed . | . . . Walls Destroyed . | . . . Machines Disabled . | . . . Actions | -11 -10 -10 --------- Run | Scr Mat Min Total 683 | 90 526 67 Wait 35 | . 29 6 Move 529 | 78 435 16 Hop . | . . . Pick Up 18 | 6 12 . Fast Attach 8 | 6 2 . Attach 7 | . . 7 Detach 1 | . 1 . Swap 7 | . 6 1 Drop 13 | . 13 . Fire 64 | . 28 36 Melee . | . . . Ram 1 | . . 1 Kick . | . . . Crush . | . . . Escape Stasis . | . . . Rewire . | . . . Trap . | . . . Miscellaneous . | . . . Route ------- -11/Scrapyard -10/Materials (discovered 2 exits: [*Mat] / *Min) -10/Mines History --------- Turn | Location | Event 32 | -11/Scrapyard | Discovered new exit (range 14) 83 | -11/Scrapyard | Entered Materials 263 | -10/Materials | Identified exit to Mines 281 | -10/Materials | Discovered new exit (range 10) 308 | -10/Materials | Build established: Mutant 611 | -10/Materials | Entered Mines 612 | -10/Mines | Assembled infested the area 617 | -10/Mines | Assisted by a Guerilla fighting off Assembled 720 | -10/Mines | Core integrity fell below 50% 726 | -10/Mines | Core integrity fell below 20% 748 | -10/Mines | Destroyed 15 combat bots 750 | -10/Mines | Crushed by falling debris 750 | -10/Mines | Smashed by cave-in Last Messages --------------- 00728_ The unstable cave ceiling collapses. 00730_ R-06 Scavenger collects Med. Matter Pod. 00730_ R-06 Scavenger collects Lgt. Ion Engine. 00732_ The unstable cave ceiling collapses. 00732_ U-05 Engineer lays Concrete. 00733_ The unstable cave ceiling collapses. 00733_ U-05 Engineer lays Concrete. 00734_ U-05 Engineer builds a Wall. 00736_ The unstable cave ceiling collapses. 00739_ U-05 Engineer lays Concrete. 00743_ The unstable cave ceiling collapses. 00743_ U-05 Engineer lays Concrete. 00744_ The unstable cave ceiling collapses. 00744_ U-05 Engineer lays Concrete. 00747_ The unstable cave ceiling collapses. 00748_ Destroyed Asb. Hover Unit. 00748_ as-52753 destroyed. 00750_ The unstable cave ceiling collapses. 00750_ Crushed by falling debris. [Achievement: Unlikely Earthworm] Map ----- +----------------------------------------------------+ | ?????????????????????????????????????????????? | | ?????????????????????????????????????????????? | | ?????????????????????????????????????????????? | | ?????????????????????????????????????????????? | | ?????????????????????????????????????????????? | | ?????????????????????????????????????????????? | | ?????????????????????????????????????????????? | | ?????????????????????????????????????????????? | | ?????????????????????????????????????????????? | | ?????????????????????????????????????????????? | | ?????????????????????????????????????????????? | | ?????????????????????????????????????????????? | | ?????????????????????????????????????????????? | | ?????????????????????????????????????????????? | | ????????? ##?????????????????????????????????? | | ?????????? ????????????????????????????????? | | ??????????? ???????????????????????????????? | | ????????????# ???????????????#######????????? | | ????????????# ???############! #????????? | | ????????????# #?## # # * = ##### | | ????????????# ## ####= *% | | ?????????????# # # #??# ##### | | ?????????????## # #??# #????????? | | ?????????????# # #??#######????????? | | ?????????????# % aa #?????????????????? | | ?????????????# @ ## #?????????????????? | | ?????????????# # # ##?????????????????? | | ?????????????# # ##??????????????????? | | ???????????? ?#########???????????????????? | | ?????????? ##??????????????????????????????? | | ?????????###?????????????????????????????????? | | ?????????????????????????????????????????????? | | ?????????????????????????????????????????????? | | ?????????????????????????????????????????????? | | | | | | | | | | | | | | | | | | | | | | | | | | | | | | | | | +----------------------------------------------------+ Best States ------------- Heat Dissipation 25 Energy Generation 12 Energy Capacity 265 Matter Stores 300 Matter Capacity 300 Sight Range 16 Terrain Scan Density 60 Resistance: KI 20 Resistance: TH 20 Resistance: EX 20 Resistance: EM 20 Resistance: I 20 Resistance: S 20 Resistance: P 20 Evasion (%) 42 Offensive Hacking 10 Item Schematics ----------------- Huge Storage Unit | -10/Materials | Hacked Robot Schematics ------------------ None Fabricated ------------ Nothing Alien Tech Used ----------------- None Achievements -------------- Unlikely Earthworm Challenges ------------ None Game ------ Seed LobotomyXenonBay Manual? 0 Play Time 00:10:39 Cumulative 2.0 hours Start 2021.08.23 @ 23:22:26 End 2021.08.25 @ 23:10:25 Sessions 2 Manual Loads 0 Difficulty Adventurer Special Mode None Game No. 2 Rogue 0 Adventurer 2 Explorer 0 Win Type - Total 0 Types 0/0/0/0/0/0/0/0/0 Lore% 0 Gallery% 9 Achievement% 13 Wizard Run 0 Options --------- ASCII 1 Keyboard 1 Movement Vi Keybinds 0 Fullscreen 1 Font 18/CogNarrow Map View 76x50 Tactical HUD 1 Map Filters NONE Filters NONE Steam 0 RUN: 0958bfd8-6474-4007-9cad-7c60b6afe10f